bitfinex/quotes_SOLUSD_20240808
["timestamp","ask_amount","ask_price","bid_price","bid_amount"]
[1723153453861,1.5756295,158.73,158.61,15.7614]
[1723153454178,12.30896473,158.74,158.62,6.3042]
[1723153454352,13.88462293,158.74,158.61,15.7614]
[1723153454767,6.3023,158.68,158.61,22.0657]
[1723153454966,6.3024,158.67,158.61,22.0657]
[1723153455550,6.3027,158.67,158.6,6.3051]
[1723153455752,1.57561906,158.73,158.6,6.3051]
[1723153455956,6.3024,158.67,158.61,6.3047]
[1723153456356,6.3019,158.69,158.63,15.7597]
[1723153456557,16.45756157,158.74,158.59,15.763]
[1723153456958,1.57561838,158.73,158.59,15.763]
[1723153457471,14.88190483,158.74,158.56,31.5331]
[1723153457472,6.58876364,158.74,158.68,15.7546]
[1723153457672,6.4035,158.77,158.68,57.7146]
[1723153457895,6.4035,158.77,158.71,15.7512]
[1723153458171,6.4035,158.77,158.71,22.0519]
[1723153458378,6.4035,158.77,158.71,15.7512]
[1723153458595,0.9252051,158.8,158.76,6.2986]
[1723153458784,0.9252051,158.8,158.71,15.7512]
[1723153458976,0.9252051,158.8,158.75,6.2989]
[1723153459175,0.9252051,158.8,158.75,15.7474]
[1723153459365,0.9252051,158.8,158.78,6.2978]
[1723153460578,0.9252051,158.8,158.76,6.2987]
[1723153460784,0.9252051,158.8,158.75,15.7474]
[1723153461258,0.9252051,158.8,158.7,15.7528]
[1723153462054,7.2227051,158.8,158.7,15.7528]
[1723153462805,0.9252051,158.8,158.72,6.3001]
[1723153463671,0.9252051,158.8,158.73,6.2998]
[1723153464296,0.9252051,158.8,158.74,6.2993]
[1723153464704,0.9252051,158.8,158.76,6.2986]
[1723153465212,0.9252051,158.8,158.78,6.2978]
[1723153466074,0.9252051,158.8,158.78,22.0424]
[1723153469704,0.9252051,158.8,158.78,22.0425]
[1723153471631,0.9252051,158.8,158.73,15.7492]
[1723153471796,0.9252051,158.8,158.74,6.2995]
[1723153472193,0.9252051,158.8,158.76,6.2987]
[1723153472387,0.9252051,158.8,158.76,15.7461]
[1723153472700,0.9252051,158.8,158.76,22.0445]
[1723153474212,0.9252051,158.8,158.77,6.2983]
[1723153474420,6.296,158.83,158.77,6.2983]
[1723153474605,1.5742952,158.86,158.77,6.2983]
[1723153474606,0.8268106,158.8,158.77,6.2983]
[1723153474993,0.8268106,158.8,158.78,6.2978]
[1723153475422,0.8268106,158.8,158.77,6.2982]
[1723153475607,0.8268106,158.8,158.78,6.2979]
[1723153476822,0.8268106,158.8,158.78,37.788]
[1723153477787,0.8268106,158.8,158.78,6.2979]
[1723153481114,0.8268106,158.8,158.79,6.2976]
[1723153486319,12.03613487,158.91,158.84,6.2953]
[1723153486504,45.0,158.9,158.84,6.2953]
[1723153487322,45.0,158.9,158.85,6.2951]
[1723153488011,51.2932,158.9,158.85,6.2951]
[1723153488517,45.0,158.9,158.85,6.2951]
[1723153488710,45.0,158.9,158.86,6.2948]
[1723153489217,45.0,158.9,158.87,6.2942]
[1723153489895,45.0,158.9,158.86,15.7368]
[1723153490114,5.74333487,158.91,158.9,6.2932]
[1723153490301,5.61205683,158.93,158.92,6.2924]
[1723153490501,5.61205683,158.93,158.91,6.2928]
[1723153490707,0.8689615,158.94,158.91,6.2928]
[1723153491116,0.8689615,158.94,158.92,15.7309]
[1723153491417,0.8689615,158.94,158.93,6.292]
[1723153493819,0.8689615,158.94,158.92,22.0233]
[1723153494002,0.8689615,158.94,158.93,6.292]
[1723153497411,6.15e-05,158.94,158.93,6.292]
[1723153497601,6.15e-05,158.94,158.93,40.602]
[1723153498008,6.15e-05,158.94,158.93,6.292]
[1723153498417,6.2862,159.08,159.0,15.7229]
[1723153498616,0.8689615,159.11,158.96,31.4541]
[1723153498925,0.8689615,159.11,159.05,6.2873]
[1723153499142,7.1538615,159.11,159.05,6.2873]
[1723153499602,7.1540615,159.11,159.03,15.7202]
[1723153500010,6.2853,159.1,159.03,15.7202]
[1723153500199,0.8689615,159.11,159.02,6.2885]
[1723153500401,2.44061808,159.11,159.02,6.2885]
[1723153500628,0.8689615,159.11,159.03,6.288]
[1723153500833,6.2858,159.09,159.03,6.288]
[1723153501131,0.8689615,159.11,159.02,15.7212]
[1723153501331,0.8689615,159.11,159.05,15.7182]
[1723153501626,0.8689615,159.11,159.06,6.2865]
[1723153501827,12.68815456,159.14,159.07,6.2863]
[1723153501828,5.9856615,159.14,159.07,6.2863]
[1723153502003,6.2845,159.12,159.06,6.2869]
[1723153502203,6.2842,159.13,159.06,6.2869]
[1723153502499,6.15e-05,159.44,159.43,40.0]
[1723153502705,1642.5742,159.67,159.43,40.0]
[1723153502706,1642.5742,159.67,159.61,6.265]
[1723153502707,15.6742,159.67,159.61,6.265]
[1723153503012,15.6742,159.67,159.6,15.6641]
[1723153503013,16.2973967,159.67,159.6,21.9295]
[1723153503225,16.2973967,159.67,159.6,15.6641]
[1723153503428,16.2973967,159.67,159.6,21.9296]
[1723153503613,22.5603967,159.67,159.6,15.6641]
[1723153503924,22.5603967,159.67,159.6,14.0441]
[1723153504130,6.2639,159.65,159.55,21.9359]
[1723153504332,6.2643,159.64,159.55,15.6686]
[1723153504629,16.2973967,159.67,159.58,6.2663]
[1723153504802,16.2973967,159.67,159.55,15.6686]
[1723153504803,6.2638,159.65,159.57,6.2666]
[1723153505002,6.2638,159.65,159.55,15.6686]
[1723153505003,6.2646,159.63,159.58,1.25295775]
[1723153505203,6.2646,159.63,159.56,1.25304671]
[1723153505620,6.2651,159.62,159.56,1.25304671]
[1723153505803,6.6272,159.66,159.56,1.25304671]
[1723153505804,6.2654,159.61,159.56,1.25304671]
[1723153506011,6.2654,159.61,159.52,6.2686]
[1723153506314,6.6272,159.66,159.5,15.6735]
[1723153506514,6.6272,159.66,159.53,6.2681]
[1723153506720,6.6272,159.66,159.5,15.6735]
[1723153506921,6.6272,159.66,159.52,6.2686]
[1723153506922,6.266,159.6,159.52,6.2686]
[1723153507304,6.6272,159.66,159.55,6.2674]
[1723153507305,6.2642,159.64,159.55,6.2674]
[1723153507504,6.6272,159.66,159.54,21.9376]
[1723153507505,6.2647,159.63,159.54,21.9376]
[1723153507706,6.2649,159.62,159.54,21.9376]
[1723153507916,6.2656,159.6,159.54,15.6697]
[1723153508425,6.2656,159.6,159.52,6.2687]
[1723153508818,15.6593,159.65,159.5,6.2693]
[1723153509019,15.6593,159.65,159.53,6.2681]
[1723153509228,15.6593,159.65,159.49,15.6741]
[1723153509440,6.2654,159.61,159.54,6.2679]
[1723153509903,15.6593,159.65,159.52,15.6711]
[1723153510106,6.2655,159.61,159.54,6.2679]
[1723153510306,45.0,159.6,159.52,15.6711]
[1723153510507,15.6593,159.65,159.52,15.6711]
[1723153510827,6.2665,159.58,159.52,15.6711]
[1723153511328,6.2665,159.58,159.52,6.2687]
[1723153512225,6.2662,159.59,159.52,6.2687]
[1723153512425,6.2664,159.58,159.52,6.2687]
[1723153512818,6.2668,159.57,159.51,21.9415]
[1723153513018,0.6231967,159.6,159.51,21.9415]
[1723153513220,6.2665,159.58,159.52,6.2687]
[1723153513422,6.2668,159.57,159.51,15.6724]
[1723153514117,6.2672,159.56,159.51,15.6724]
[1723153514312,0.6231967,159.6,159.51,15.6724]
[1723153514520,0.6231967,159.6,159.51,21.9413]
[1723153514712,6.2665,159.58,159.52,6.2687]
[1723153514908,0.6231967,159.6,159.52,6.2687]
[1723153515112,0.6231967,159.6,159.51,15.6724]
[1723153515113,6.2665,159.58,159.51,15.6724]
[1723153515325,0.6231967,159.6,159.51,15.6724]
[1723153517219,0.6231967,159.6,159.47,15.6763]
[1723153518326,0.6231967,159.6,159.5,15.6732]
[1723153518629,6.2676,159.55,159.5,15.6732]
[1723153518839,6.8891967,159.6,159.53,6.2683]
[1723153519172,45.0,159.59,159.5,15.6732]
[1723153519316,45.0,159.59,159.44,31.3591]
[1723153519317,0.6231967,159.6,159.53,15.6701]
[1723153519629,0.6231967,159.6,159.57,15.6664]
[1723153520949,0.6231967,159.6,159.58,6.2661]
[1723153521523,0.35005329,159.6,159.58,6.2661]
[1723153521852,0.35005329,159.6,159.59,85.0]
[1723153522450,6.6433,159.82,159.73,15.6507]
[1723153522653,6.6433,159.82,159.75,6.2597]
[1723153523033,6.6433,159.82,159.67,15.657]
[1723153523234,6.6433,159.82,159.67,21.9195]
[1723153523442,6.6433,159.82,159.67,15.657]
[1723153523643,6.2593,159.77,159.67,15.657]
[1723153523857,6.6433,159.82,159.63,6.2644]
[1723153524064,6.6433,159.82,159.61,15.6631]
[1723153524461,6.2605,159.73,159.62,6.2645]
[1723153524769,6.2617,159.71,159.61,21.9282]
[1723153524961,6.2617,159.71,159.61,15.6631]
[1723153525138,45.0,159.7,159.61,21.9279]
[1723153525454,6.263,159.67,159.54,15.6694]
[1723153525833,45.0,159.66,159.55,6.2674]
[1723153526033,51.6433,159.66,159.54,15.6694]
[1723153526251,6.2643,159.64,159.54,21.9371]
[1723153526436,6.2648,159.62,159.54,15.6694]
[1723153526634,51.6433,159.66,159.5,6.2695]
[1723153526845,21.56660535,159.65,159.48,15.6756]
[1723153527141,6.2679,159.55,159.43,6.2722]
[1723153527352,45.0,159.54,159.43,6.2722]
[1723153527656,6.2684,159.53,159.43,6.2722]
[1723153527835,45.0,159.52,159.43,6.2722]
[1723153528452,45.0,159.52,159.45,6.2712]
[1723153528654,45.0,159.52,159.43,6.2722]
[1723153528842,45.0,159.53,159.42,15.6812]
[1723153529230,51.268,159.54,159.45,6.2711]
[1723153529438,51.268,159.54,159.43,6.2721]
[1723153529639,6.2687,159.53,159.43,6.2721]
[1723153529942,45.0,159.52,159.45,6.2712]
[1723153530141,51.2682,159.54,159.45,6.2712]
[1723153530342,6.2686,159.53,159.43,6.2721]
[1723153530862,45.0,159.52,159.42,15.6812]
[1723153531062,23.26566797,159.51,159.4,6.2732]
[1723153531359,6.2701,159.49,159.41,6.2729]
[1723153531677,6.2701,159.49,159.39,6.2736]
[1723153531678,45.0,159.48,159.39,6.2736]
[1723153531844,6.2709,159.47,159.39,6.2736]
[1723153532045,45.0,159.46,159.39,6.2736]
[1723153532465,51.2713,159.46,159.37,21.9608]
[1723153533471,6.272,159.44,159.37,15.6863]
[1723153533651,6.2724,159.43,159.37,15.6863]
[1723153533855,51.2728,159.42,159.34,6.2755]
[1723153534056,45.0,159.42,159.32,15.6911]
[1723153534256,45.0,159.42,159.35,6.2753]
[1723153534440,45.0,159.42,159.31,6.2768]
[1723153534441,6.2744,159.38,159.31,6.2768]
[1723153534848,45.0,159.37,159.27,15.6957]
[1723153535955,6.276,159.34,159.27,21.9741]
[1723153536150,6.2771,159.31,159.23,6.2801]
[1723153536351,45.0,159.3,159.22,13.8932]
[1723153536644,65.0,159.33,159.23,6.28]
[1723153537084,6.2777,159.3,159.22,13.8932]
[1723153537244,45.0,159.29,159.22,13.8932]
[1723153538076,45.0,159.29,159.23,6.2801]
[1723153538446,45.0,159.29,159.22,13.8932]
[1723153538645,6.2783,159.28,159.22,13.8932]
[1723153538845,6.2792,159.26,159.19,6.2817]
[1723153539159,45.0,159.25,159.19,6.2817]
[1723153539361,45.0,159.25,159.2,6.2813]
[1723153539562,20.0,159.33,159.2,15.7027]
[1723153539767,6.2787,159.27,159.2,15.7027]
[1723153540072,20.0,159.34,159.2,15.7027]
[1723153540453,6.279,159.26,159.2,21.9838]
[1723153540779,45.0,159.25,159.2,21.9838]
[1723153540963,6.2784,159.28,159.21,6.2809]
[1723153541180,45.0,159.27,159.21,6.2809]
[1723153541547,6.279,159.26,159.2,15.7027]
[1723153541747,45.0,159.27,159.2,15.7027]
[1723153541971,6.2781,159.29,159.2,15.7027]
[1723153542347,69.0622,159.36,159.2,15.7027]
[1723153542348,69.0622,159.36,159.23,6.2801]
[1723153542554,15.6914,159.33,159.2,15.7027]
[1723153542755,20.0,159.32,159.2,15.7027]
[1723153542981,6.2785,159.28,159.2,15.7027]
[1723153543158,6.2779,159.29,159.23,6.2801]
[1723153543360,6.2779,159.29,159.2,15.7027]
[1723153543857,6.2782,159.28,159.2,15.7027]
[1723153544077,6.2782,159.28,159.22,6.2805]
[1723153544274,51.2787,159.27,159.21,6.2809]
[1723153544581,6.2787,159.27,159.2,21.984]
[1723153544880,45.0,159.26,159.2,21.984]
[1723153545185,6.2794,159.25,159.2,13.2027]
[1723153545368,51.279,159.26,159.2,13.2027]
[1723153545567,6.2798,159.24,159.18,6.2819]
[1723153545782,45.0,159.26,159.16,15.7069]
[1723153546070,45.0,159.27,159.18,6.2821]
[1723153546254,6.56440885,159.33,159.17,31.4122]
[1723153546449,6.2775,159.3,159.23,6.2798]
[1723153546864,6.2778,159.29,159.23,6.2802]
[1723153547053,6.2774,159.3,159.23,6.2802]
[1723153547256,6.2779,159.29,159.22,15.701]
[1723153547661,6.2782,159.28,159.22,21.9814]
[1723153547863,6.2782,159.28,159.22,15.701]
[1723153548069,44.24900165,159.36,159.22,21.9814]
[1723153548261,20.0,159.35,159.22,21.9814]
[1723153548460,6.2786,159.27,159.22,15.701]
[1723153548658,45.0,159.26,159.22,15.701]
[1723153548859,6.2782,159.29,159.22,15.701]
[1723153549057,45.0,159.28,159.22,15.701]
[1723153550375,51.2783,159.28,159.22,15.701]
[1723153550676,51.2783,159.28,159.22,21.9816]
[1723153550975,6.2715,159.46,159.38,15.6856]
[1723153551278,6.5239,159.49,159.31,41.7]
[1723153551450,6.2708,159.47,159.41,15.6822]
[1723153551875,6.5239,159.49,159.37,15.686]
[1723153552071,6.271,159.47,159.32,41.7]
[1723153552384,6.2707,159.47,159.41,6.2731]
[1723153552758,6.2703,159.48,159.41,6.2731]
[1723153552960,6.2703,159.48,159.42,6.2727]
[1723153553476,6.2719,159.44,159.38,6.2743]
[1723153553662,22.1992,159.49,159.36,15.6872]
[1723153554177,6.2723,159.43,159.37,6.2747]
[1723153554377,6.2727,159.42,159.36,21.9622]
[1723153554678,45.0,159.41,159.32,6.2766]
[1723153554975,15.6777,159.47,159.34,15.6891]
[1723153555186,6.2731,159.41,159.35,6.2752]
[1723153555777,6.1029,159.56,159.35,41.7]
[1723153555989,6.2695,159.51,159.44,21.9512]
[1723153556280,21.7711,159.56,159.44,15.6797]
[1723153556479,15.6711,159.53,159.4,15.6833]
[1723153556776,15.6711,159.53,159.41,6.2728]
[1723153556966,15.6711,159.53,159.4,15.6833]
[1723153556967,6.2703,159.48,159.4,15.6833]
[1723153557170,15.6711,159.53,159.4,15.6833]
[1723153557375,45.0,159.52,159.4,15.6833]
[1723153557571,15.6711,159.53,159.43,6.2719]
[1723153557772,15.6711,159.53,159.43,15.6806]
[1723153557974,6.1029,159.56,159.46,15.6778]
[1723153558281,6.2701,159.49,159.44,6.2718]
[1723153558579,6.1993,159.79,159.62,20.0]
[1723153558882,1.0874819,159.81,159.79,6.2581]
[1723153561775,1.0874819,159.81,159.77,21.9055]
[1723153562180,1.0874819,159.81,159.75,6.2596]
[1723153562378,1.0874819,159.81,159.73,15.6513]
[1723153562581,1.0874819,159.81,159.75,6.2596]
[1723153562969,1.0874819,159.81,159.76,6.2593]
[1723153563159,1.0874819,159.81,159.74,6.2599]
[1723153563482,1.0874819,159.81,159.73,15.6513]
[1723153564684,6.2579,159.8,159.74,6.2601]
[1723153564870,1.0874819,159.81,159.75,6.2597]
[1723153565077,1.0874819,159.81,159.76,15.6479]
[1723153565489,0.6258516,159.81,159.76,15.6479]
[1723153565886,0.6258516,159.81,159.76,21.9071]
[1723153566187,6.2578,159.8,159.74,6.2601]
[1723153566380,6.2582,159.79,159.72,21.9123]
[1723153566581,6.2578,159.8,159.74,6.2598]
[1723153566888,6.2586,159.78,159.72,21.9126]
[1723153567068,0.6258516,159.81,159.73,6.2605]
[1723153567479,0.6258516,159.81,159.72,15.6517]
[1723153567676,6.2579,159.8,159.74,6.2601]
[1723153567886,0.6258516,159.81,159.76,15.6482]
[1723153568183,0.6258516,159.81,159.79,6.2582]
[1723153568568,0.6258516,159.81,159.76,15.6482]
[1723153570288,0.6258516,159.81,159.79,6.2578]
[1723153570495,0.6258516,159.81,159.76,15.6482]
[1723153571077,0.6258516,159.81,159.78,6.2584]
[1723153571273,0.6258516,159.81,159.76,15.6482]
[1723153571693,0.6258516,159.81,159.78,6.2585]
[1723153572090,0.6258516,159.81,159.79,21.9025]
[1723153572290,1e-08,159.81,159.79,21.9025]
[1723153573093,648.7,160.36,160.16,20.0]
[1723153573397,22.2397,160.39,160.27,6.2392]
[1723153573693,22.2397,160.39,160.3,15.5953]
[1723153574078,6.2362,160.36,160.26,6.2395]
[1723153574282,22.2397,160.39,160.25,15.5998]
[1723153574283,7.0732268,160.33,160.25,15.5998]
[1723153574584,22.2397,160.39,160.25,15.5998]
[1723153574585,0.6970782,160.37,160.25,15.5998]
[1723153575194,0.6970782,160.37,160.2,15.6046]
[1723153575396,0.6970782,160.37,160.15,20.0]
[1723153575397,6.2406,160.24,160.17,6.2431]
[1723153575596,15.5931,160.33,160.09,20.0]
[1723153575776,15.5931,160.33,160.15,6.2438]
[1723153575973,6.2415,160.22,160.14,15.6105]
[1723153576189,6.2419,160.21,160.14,15.6105]
[1723153576391,15.5969,160.29,160.1,20.0]
[1723153576590,46.7762,160.34,160.1,31.2299]
[1723153576796,46.7762,160.34,160.2,6.2418]
[1723153576992,6.2396,160.27,160.18,21.35]
[1723153577194,0.6970782,160.37,160.11,20.0]
[1723153577396,6.2366,160.35,160.25,6.2399]
[1723153577601,6.2366,160.35,160.27,6.2393]
[1723153577902,0.6970782,160.37,160.18,20.0]
[1723153578202,0.6970782,160.37,160.31,15.5946]
[1723153578499,0.6970782,160.37,160.34,6.2364]
[1723153578688,0.6970782,160.37,160.35,6.2362]
[1723153578882,0.6970782,160.37,160.33,6.2369]
[1723153579087,0.6970782,160.37,160.31,15.5946]
[1723153579492,0.6970782,160.37,160.35,6.2361]
[1723153579696,0.6970782,160.37,160.35,21.8264]
[1723153580206,0.6970782,160.37,160.22,31.2069]
[1723153580997,0.6970782,160.37,160.3,6.2381]
[1723153581487,0.6970782,160.37,160.3,15.5954]
[1723153581888,0.6970782,160.37,160.34,6.2366]
[1723153582201,0.6970782,160.37,160.35,6.2362]
[1723153582399,0.6970782,160.37,160.34,15.5915]
[1723153582786,0.6970782,160.37,160.3,15.5957]
[1723153583100,0.6970782,160.37,160.34,6.2365]
[1723153583912,0.6970782,160.37,160.3,15.5957]
[1723153584296,0.6970782,160.37,160.31,6.2378]
[1723153584482,6.9329782,160.37,160.3,21.8339]
[1723153584908,6.2363,160.36,160.3,15.5957]
[1723153585288,6.2363,160.36,160.3,21.8339]
[1723153585493,6.2363,160.35,160.3,15.5957]
[1723153585688,6.2368,160.34,160.27,6.2393]
[1723153585906,6.2368,160.34,160.28,6.239]
[1723153586109,6.2371,160.33,160.26,6.2395]
[1723153586288,6.2366,160.35,160.28,6.239]
[1723153586488,6.238,160.31,160.15,20.0]
[1723153586692,6.2386,160.3,160.21,15.6045]
[1723153586987,6.238,160.31,160.24,15.6009]
[1723153587304,45.0,160.34,160.24,15.6009]
[1723153587602,6.2381,160.31,160.25,6.2402]
[1723153587805,28.3225,160.33,160.27,6.2394]
[1723153587999,22.0851,160.33,160.27,15.5981]
[1723153588600,22.0851,160.33,160.29,6.2385]
[1723153588907,22.0851,160.33,160.27,21.8375]
[1723153589212,22.0851,160.33,160.29,6.2385]
[1723153589799,22.0851,160.33,160.27,15.5981]
[1723153590002,22.0851,160.33,160.28,6.239]
[1723153590507,22.0851,160.33,160.27,15.5981]
[1723153590711,22.0851,160.33,160.3,6.2382]
[1723153590896,22.0851,160.33,160.27,15.5981]
[1723153591303,6.9327782,160.37,160.21,31.2084]
[1723153591304,0.6970782,160.37,160.21,31.2084]
[1723153592216,0.6970782,160.37,160.31,6.2377]
[1723153592594,0.6970782,160.37,160.34,15.5909]
[1723153592796,0.6970782,160.37,160.34,21.8275]
[1723153593300,0.6970782,160.37,160.35,6.2361]
[1723153594117,0.6970782,160.37,160.34,15.5909]
[1723153594613,0.6970782,160.37,160.3,15.5949]
[1723153594818,0.6970782,160.37,160.26,31.199]
[1723153595111,0.6970782,160.37,160.33,21.8293]
[1723153595315,0.6970782,160.37,160.33,15.5926]
[1723153595698,0.6970782,160.37,160.34,6.2363]
[1723153595912,0.6970782,160.37,160.35,6.2363]
[1723153596114,0.6970782,160.37,160.33,15.5926]
[1723153596297,0.6970782,160.37,160.36,6.2359]
[1723153596505,0.6970782,160.37,160.26,31.199]
[1723153596719,0.6970782,160.37,160.31,31.1894]
[1723153597221,0.6970782,160.37,160.35,15.5906]
[1723153597624,0.6970782,160.37,160.27,15.598]
[1723153597625,6.2371,160.33,160.27,15.598]
[1723153597921,0.6970782,160.37,160.27,15.598]
[1723153598306,6.2364,160.35,160.27,15.598]
[1723153598622,45.0,160.34,160.29,6.2386]
[1723153598801,0.6970782,160.37,160.27,15.598]
[1723153598996,6.2364,160.35,160.28,6.2389]
[1723153599200,0.6970782,160.37,160.29,6.2383]
[1723153599400,6.236,160.36,160.27,15.598]
[1723153599700,0.6970782,160.37,160.27,21.8374]
[1723153599701,51.2365,160.35,160.27,21.8374]
[1723153599902,0.6970782,160.37,160.3,15.5951]
[1723153600498,0.6970782,160.37,160.3,21.833]
[1723153600699,6.9326782,160.37,160.3,21.833]
[1723153601222,6.9327782,160.37,160.3,15.5951]
[1723153601412,0.6970782,160.37,160.3,15.5951]
[1723153601605,0.6970782,160.37,160.35,6.2362]
[1723153604508,6.1,160.57,160.47,15.5787]
[1723153604698,6.1,160.57,160.52,6.2296]
[1723153605018,28.27200669,160.72,160.42,31.1662]
[1723153605019,6.1,160.69,160.56,15.57]
[1723153605420,6.1,160.69,160.56,21.7981]
[1723153605613,6.1,160.69,160.56,15.57]
[1723153606122,6.1,160.69,160.56,21.7978]
[1723153606304,6.1,160.69,160.59,6.2269]
[1723153606506,6.1,160.69,160.56,15.57]
[1723153607013,6.1,160.69,160.59,15.567]
[1723153607219,6.1,160.69,160.61,6.2262]
[1723153609537,6.2236,160.68,160.61,6.2262]
[1723153609905,6.2236,160.68,160.62,6.2258]
[1723153610322,6.2239,160.67,160.59,15.567]
[1723153611119,6.2239,160.67,160.61,6.2262]
[1723153611313,6.1,160.69,160.59,15.567]
[1723153611513,6.2247,160.65,160.59,15.567]
[1723153611926,6.1,160.69,160.59,15.567]
[1723153612129,6.2247,160.65,160.59,15.567]
[1723153612824,6.2251,160.64,160.59,15.567]
[1723153613510,6.225,160.65,160.58,6.2273]
[1723153613823,6.2247,160.65,160.58,15.568]
[1723153614026,6.1,160.69,160.58,21.7954]
[1723153614211,15.5592,160.68,160.54,15.5717]
[1723153615025,6.2259,160.62,160.56,6.2281]
[1723153615227,7.5563449,160.63,160.57,6.2277]
[1723153615430,1.3309449,160.63,160.59,6.227]
[1723153615629,1.3309449,160.63,160.57,21.7965]
[1723153616215,7.5565449,160.63,160.57,21.7965]
[1723153616726,1.3309449,160.63,160.57,15.5691]
[1723153617522,1.3309449,160.63,160.58,6.2274]
[1723153617827,1.3309449,160.63,160.51,20.0]
[1723153617828,1.3309449,160.63,160.6,15.5663]
[1723153618330,1.3309449,160.63,160.62,6.2258]
[1723153622443,14.4724,160.8,160.65,51.122]
[1723153622646,14.4724,160.8,160.67,20.0]
[1723153622816,6.2193,160.79,160.65,51.122]
[1723153623011,14.4724,160.8,160.71,21.7773]
[1723153623513,6.2201,160.77,160.72,6.222]
[1723153623729,5.7201,160.77,160.71,21.7773]
[1723153624134,6.2197,160.78,160.73,6.2215]
[1723153624437,6.2201,160.77,160.72,6.2218]
[1723153624820,6.2205,160.76,160.71,21.7773]
[1723153625022,6.2217,160.73,160.68,6.2235]
[1723153625224,15.5491,160.79,160.66,15.5606]
[1723153625435,6.1287,160.77,160.66,15.5606]
[1723153625641,6.2215,160.74,160.68,6.2233]
[1723153625820,6.2215,160.74,160.69,6.223]
[1723153626316,6.2213,160.74,160.69,6.223]
[1723153626723,6.1287,160.77,160.69,15.5572]
[1723153627059,6.2209,160.75,160.69,21.7802]
[1723153627219,6.2213,160.74,160.69,15.5572]
[1723153627630,6.1287,160.77,160.63,31.1259]
[1723153627823,21.6789,160.77,160.63,31.1259]
[1723153628321,6.2227,160.71,160.63,31.1259]
[1723153628823,45.0,160.76,160.64,15.5618]
[1723153629025,6.2235,160.69,160.64,15.5618]
[1723153629213,6.2224,160.71,160.65,6.2246]
[1723153629619,45.0,160.76,160.64,15.5618]
[1723153630015,6.2227,160.7,160.64,21.7866]
[1723153630340,6.2232,160.69,160.64,21.7866]
[1723153630731,6.2232,160.69,160.64,15.5618]
[1723153630925,6.2227,160.7,160.64,21.7866]
[1723153631125,6.2232,160.69,160.64,21.7866]
[1723153631342,6.2235,160.68,160.61,15.5655]
[1723153631851,6.2235,160.68,160.62,6.2258]
[1723153632142,6.2235,160.68,160.63,6.2254]
[1723153632338,6.2235,160.68,160.62,6.2258]
[1723153632639,6.224,160.67,160.62,6.2258]
[1723153633022,6.2235,160.68,160.62,6.2258]
[1723153633437,6.2239,160.67,160.62,6.2258]
[1723153634543,6.2236,160.68,160.62,6.2258]
[1723153634740,15.5549,160.73,160.63,15.5627]
[1723153635752,15.5549,160.73,160.6,15.5665]
[1723153636161,45.0,160.72,160.6,15.5665]
[1723153636455,2.56628728,160.76,160.6,31.1327]
[1723153636626,15.5526,160.75,160.6,31.1327]
[1723153636952,6.2228,160.7,160.65,21.7857]
[1723153637126,6.2231,160.69,160.65,15.561]
[1723153637331,6.223,160.7,160.59,31.1335]
[1723153637530,6.2232,160.69,160.64,6.225]
[1723153637745,6.2228,160.7,160.65,6.2246]
[1723153637947,6.2234,160.69,160.64,6.225]
[1723153638150,15.5547,160.73,160.63,15.5629]
[1723153638535,6.2239,160.68,160.63,15.5629]
[1723153639353,15.5576,160.7,160.6,6.2263]
[1723153639557,31.1037,160.76,160.59,15.5666]
[1723153639558,15.5537,160.74,160.59,15.5666]